Cogmind - Beta 15 *** ADVENTURER MODE // 2025.05.15 @ 22:52:56 Player: furiousskeleton Result: Self-destructed Performance ------------- Evolutions (1) 500 Regions Visited (3) 600 Robots Destroyed (30) 150 Value Destroyed (542) 542 Prototype IDs (8) 160 Alien Tech Used (0) 0 Bonus (0) 0 TOTAL SCORE: 1952 Bonus ------- None Cogmind --------- Core Integrity 304/400 Matter 270/300 Energy 24/140 System Corruption 0% Temperature Cool (0) Movement Hovering (56) Location -9/Mines Parts ------- > --- POWER (1) -------- Light Deuterium Engine > --- PROPULSION (2) --- Airjet Airjet > --- UTILITY (4) ------ Improved Heat Sink Small Storage Unit Visual Processing Unit Improved Signal Interpreter > --- WEAPON (2) ------- EMP Blaster > --- INVENTORY (8) ---- Light Deuterium Engine Airjet Airjet Improved Signal Interpreter Beam Rifle Particle Gun Beam Cannon Peak State ------------ > --- POWER ------------ Light Deuterium Engine > --- PROPULSION ------- Airjet Airjet > --- UTILITY ---------- Improved Heat Sink Small Storage Unit Visual Processing Unit Improved Signal Interpreter > --- WEAPON ----------- Beam Rifle Particle Gun > --- INVENTORY -------- Light Deuterium Engine Compact Wheel Compact Wheel Airjet Airjet Improved Signal Interpreter Medium Laser Beam Cannon [Rating: 23] Favorites ----------- Power Ion Engine Engine Ion Engine Propulsion Compact Wheel Wheel Compact Wheel Hover Unit Airjet Utility Small Storage Unit Device Improved Heat Sink Storage Small Storage Unit Processor Signal Interpreter Protection Light Armor Plating Weapon Small Laser Energy Gun Small Laser Energy Cannon Beam Cannon Launcher EMP Blaster Build | -11 -10 -9 -9 ------- Run | Yrd Mat Mat Min Slots Evolved 2 | . . 2 . Power . | . . . . Propulsion . | . . . . Utility 2 | . . 2 . Weapon . | . . . . Parts Attached 20 | 6 4 10 . Power 3 | 1 1 1 . Engine 3 | 1 1 1 . Core . | . . . . Reactor . | . . . . Propulsion 4 | 2 . 2 . Treads . | . . . . Leg . | . . . . Wheel 2 | 2 . . . Hover 2 | . . 2 . Flight . | . . . . Utility 6 | 1 1 4 . Device 1 | . . 1 . Storage 1 | 1 . . . Processor 3 | . 1 2 . Hackware . | . . . . Protection 1 | . . 1 . Artifact . | . . . . Weapon 7 | 2 2 3 . Energy Gun 5 | 2 2 1 . Energy Cannon 1 | . . 1 . Ballistic Gun . | . . . . Ballistic Cannon . | . . . . Launcher 1 | . . 1 . Special Weapon . | . . . . Impact Weapon . | . . . . Slashing Weapon . | . . . . Piercing Weapon . | . . . . Special Melee Weapon . | . . . . Unidentified Prototypes . | . . . . Parts Lost . | . . . . Power . | . . . . Propulsion . | . . . . Utility . | . . . . Weapon . | . . . . Highest Loss Streak . | . . . . To Critical Strikes . | . . . . Average Backups 6 | . 6 6 7 Power . | . 1 1 1 Propulsion 1 | . 1 2 2 Utility 1 | . 2 . 1 Weapon 1 | . 1 2 3 Tool/Special . | . . . . Unused Backups 10 | . . 6 4 Power 2 | . . 1 1 Propulsion 4 | . . 2 2 Utility 2 | . . 1 1 Weapon 2 | . . 2 . Tool/Special . | . . . . Average Slot Usage (%) 96 | . 99 91 88 Engine 13 | . 14 11 11 Wheel 19 | . 27 1 . Hover 6 | . . 20 22 Device 3 | . . 11 11 Storage 13 | . 14 11 11 Processor 15 | . 13 20 22 Energy Gun 23 | . 28 14 . Peak Build Rating 23 | 6 9 23 21 Average Rating 11 | 4 8 20 21 On Entrance 9 | . 6 9 21 Naked Turns . | . . . . Heaviest Build 19 | 12 15 19 15 Greatest Support 32 | 32 32 32 16 Greatest Overweight (x) 6 | . . 6 . Average Overweight (x) . | . . . . Largest Inventory Capacity 8 | 8 8 8 8 Average Capacity 7 | 6 8 8 8 Most Carried 8 | 1 8 8 7 Average Carried 6 | . 6 6 7 Final Capacity 8 | 8 8 8 8 Final Carried 8 | 1 8 7 7 Class Distribution -------------------- 100% | Mutant Dominant Class ---------------- Mutant | -10/Materials Mutant | -9/Materials Mutant | -9/Mines Resources | -11 -10 -9 -9 ----------- Run | Yrd Mat Mat Min Matter Collected 428 | 191 119 118 . Remotely . | . . . . Salvage Created 914 | . 468 341 105 Parts 48 | . 24 21 3 Haulers Intercepted . | . . . . Recyclers Shooed . | . . . . Parts Field Recycled . | . . . . Retrieved Matter . | . . . . Parts Self-Destructed . | . . . . Prevented . | . . . . Kills | -11 -10 -9 -9 ------- Run | Yrd Mat Mat Min Combat Hostiles Destroyed 23 | . 8 13 2 Guns 17 | . 8 9 . AOE 6 | . . 4 2 Classes Destroyed 6 | . 5 1 . Worker 2 | . 1 1 . Recycler 2 | . 2 . . Watcher 3 | . 3 . . Swarmer 14 | . 3 9 2 Grunt 8 | . 5 3 . Sentry 1 | . . 1 . Best Kill Streak 6 | . 6 5 2 Combat Bots Only 5 | . 4 5 2 Max Kills in Single Turn 3 | . 1 3 2 Gunslinging . | . . . . Exploded 3 | . . 3 2 Melee . | . . . . Uniques/NPCs Destroyed . | . . . . Combat | -11 -10 -9 -9 -------- Run | Yrd Mat Mat Min Hostile Shots Fired 100 | . 38 48 14 Missed 36 | . 11 21 4 Hits 64 | . 27 27 10 Projectile 64 | . 27 27 10 Critical Strikes 1 | . . 1 . Damage Taken 483 | . 203 210 70 Core 142 | . 46 90 6 Absorbed by Shields . | . . . . Ignored by Resistances 154 | . 65 65 24 Regen/Repaired (Parts) 70 | . 34 36 . Core Remaining (%) 90 | 100 81 . . Volleys Fired 85 | . 37 43 5 Largest 2 | . 2 2 1 Hottest 116 | . 115 116 33 Shots Fired 126 | . 74 47 5 Gun 115 | . 74 41 . Cannon 4 | . . 4 . Launcher 7 | . . 2 5 Special . | . . . . Kinetic . | . . . . Thermal 119 | . 74 45 . Explosive . | . . . . Electromagnetic 7 | . . 2 5 Robot Hit Streak 21 | . 21 14 1 Robot Miss Streak 4 | . 2 2 4 Penetration Max . | . . . . Secondary Targets . | . . . . Shots Hit Robots 90 | . 54 35 1 Core Hits 41 | . 23 16 2 Critical Kills . | . . . . Critical Parts Destroyed . | . . . . Critical Strikes 3 | . . 3 . Burn 3 | . . 3 . Melee Attacks . | . . . . Impact . | . . . . Slashing . | . . . . Piercing . | . . . . Sneak Attacks . | . . . . Combat Hostiles . | . . . . Follow-up Attacks . | . . . . Damage Inflicted 1324 | . 639 628 57 Guns 1108 | . 631 477 . Cannons 34 | . . 34 . Explosions 159 | . . 102 57 Melee . | . . . . Ramming 23 | . 8 15 . Kinetic . | . . . . Thermal 1142 | . 631 511 . Explosive . | . . . . Electromagnetic 159 | . . 102 57 Impact . | . . . . Slashing . | . . . . Piercing . | . . . . Highest Corruption . | . . . . Average Corruption . | . . . . Corruption Purged . | . . . . Corruption Blocked . | . . . . Overload Shots . | . . . . Overflow Damage . | . . . . Projectiles . | . . . . Explosions . | . . . . Melee . | . . . . Knockbacks . | . . . . Impact . | . . . . Kinetic . | . . . . Secondary . | . . . . Self-Inflicted Damage 23 | . 3 7 13 Shots 2 | . . . 2 Rammed 3 | . 2 1 . Targets Rammed 3 | . 2 1 . Kicked . | . . . . Crushed . | . . . . Highest Temperature 321 | . 321 84 . Average Temperature 91 | . 96 43 . Received Heat Transfer 165 | . 87 78 . Effects 2 | . 2 . . Energy Bleed 2 | . 2 . . Siege Activations . | . . . . Martial Activations . | . . . . Shielding Activations . | . . . . Robots Disrupted . | . . . . Combat Hostiles . | . . . . Robots Corrupted . | . . . . Combat Hostiles . | . . . . Parts Fried . | . . . . Impact Corruptions . | . . . . Robots Melted . | . . . . Combat Hostiles . | . . . . Parts Melted 3 | . 2 1 . Heat Transferred 2939 | . 1422 1517 . Parts Sabotaged . | . . . . Parts Stolen . | . . . . Parts Stripped . | . . . . Power Chain Reactions . | . . . . Alert | -11 -10 -9 -9 ------- Run | Yrd Mat Mat Min Maximum Alert Level 1 | . . 1 . Low Security (%) 96 | 100 100 87 100 Level 1 3 | . . 12 . Level 2 . | . . . . Level 3 . | . . . . Level 4 . | . . . . Level 5 . | . . . . High Security . | . . . . Max Security . | . . . . Peak Influence 228 | . 105 228 132 Initial 73 | . . . 73 Average 31 | . 19 60 87 Influence Increases 702 | . 291 352 59 Destroy 0b10 Robot/C 460 | . 160 260 40 Destroy 0b10 Robot/NC 35 | . 30 5 . Destroy Leader 96 | . 36 50 10 Successful Hack 26 | . 20 6 . Disable Machine 9 | . . . 9 Destroy Structure 1 | . . 1 . Lose Combat Pursuer 75 | . 45 30 . Influence Decreases 570 | . 291 129 150 Entered New Map 150 | . . . 150 Time Decay 416 | . 287 129 . Purge Threat 4 | . 4 . . Squads Dispatched 2 | . 1 1 . Investigation 1 | . 1 . . Extermination . | . . . . Reinforcement 1 | . . 1 . Assault . | . . . . Garrison . | . . . . Intercept . | . . . . Searches Triggered . | . . . . Construction Impeded . | . . . . Haulers Reinforced . | . . . . Active Scanning Responses . | . . . . Cargo Convoy Interrupts . | . . . . Stealth | -11 -10 -9 -9 --------- Run | Yrd Mat Mat Min Distress Signals 4 | . 1 3 . Communications Jammed . | . . . . Distress Signals . | . . . . Times Spotted 50 | . 19 27 4 Peak Tracking Total 8 | . 7 8 4 Tactical Retreats 4 | . 2 2 . Traps | -11 -10 -9 -9 ------- Run | Yrd Mat Mat Min Traps Triggered 4 | . 1 3 . Indirectly 2 | . . 2 . Trap Hack Attempts . | . . . . Triggered . | . . . . Disarmed . | . . . . Reprogrammed . | . . . . Reused . | . . . . Traps Extracted . | . . . . Installed . | . . . . Triggered . | . . . . Machines | -11 -10 -9 -9 ---------- Run | Yrd Mat Mat Min Machines Disabled 1 | . . . 1 Max in Single Turn 1 | . . . 1 Machines Repaired . | . . . . Machines Dismantled . | . . . . Machines Sabotaged . | . . . . Overloaded Fab Kills . | . . . . Hacking | -11 -10 -9 -9 --------- Run | Yrd Mat Mat Min Machines Accessed 14 | . 9 5 . Terminals 10 | . 6 4 . Fabricators . | . . . . Repair Stations 2 | . 1 1 . Recycling Units 2 | . 2 . . Scanalyzers . | . . . . Garrison Access . | . . . . Total Hacks 37 | . 21 16 . Successful 23 | . 16 7 . Failed 14 | . 5 9 . Catastrophic 1 | . 1 . . Database Lockouts . | . . . . Manual 1 | . 1 . . Terminals 28 | . 14 14 . Fabricators . | . . . . Repair Stations 7 | . 5 2 . Recycling Units 2 | . 2 . . Scanalyzers . | . . . . Garrison Access . | . . . . Terminal Hacks 15 | . 10 5 . Prototype ID Bank 4 | . 1 3 . Alert Level 1 | . 1 . . Unreport Threat 1 | . 1 . . Locate Traps 3 | . 2 1 . Dispatch Records 1 | . 1 . . Hauler Manifests 2 | . 1 1 . Registered Components 1 | . 1 . . Registered Prototypes 1 | . 1 . . Zone Layout 1 | . 1 . . Fabricator Hacks . | . . . . Repair Station Hacks 6 | . 4 2 . Scan Component 3 | . 2 1 . Repair 3 | . 2 1 . Recycling Unit Hacks 2 | . 2 . . Report Inventory 2 | . 2 . . Scanalyzer . | . . . . Garrison Access Hacks . | . . . . Unauthorized Hacks . | . . . . Terminals . | . . . . Fabricators . | . . . . Repair Stations . | . . . . Recycling Units . | . . . . Scanalyzers . | . . . . Garrison Access . | . . . . Data Cores Recovered . | . . . . Used . | . . . . Hacking Detections 10 | . 5 5 . Full Trace Events . | . . . . Feedback Events . | . . . . Feedback Blocked . | . . . . Robot Schematics Acquired . | . . . . Robots Built . | . . . . Authchips . | . . . . Time . | . . . . Total Robot Build Rating . | . . . . Part Schematics Acquired . | . . . . Parts Built . | . . . . Authchips . | . . . . Time . | . . . . Total Part Build Rating . | . . . . Parts Repaired 3 | . 2 1 . Time 78 | . 52 26 . Parts Recycled . | . . . . Recycled Matter . | . . . . Retrieved Matter . | . . . . Retrieved Components . | . . . . Parts Scanalyzed . | . . . . Part Schematics Acquired . | . . . . Parts Damaged . | . . . . Bothacking | -11 -10 -9 -9 ------------ Run | Yrd Mat Mat Min Used RIF Installer . | . . . . Robots Hacked . | . . . . Non-combat . | . . . . Combat . | . . . . Robot Hacks Applied . | . . . . Relay Couplers Released . | . . . . Fabnet Peak Effective % . | . . . . Robots Rewired . | . . . . Allies Hacked . | . . . . Hacks Repelled . | . . . . Allies | -11 -10 -9 -9 -------- Run | Yrd Mat Mat Min Total Allies . | . . . . Largest Group . | . . . . Highest-Rated Group . | . . . . Highest-Rated Ally . | . . . . Total Orders . | . . . . Ally Attacks . | . . . . Total Damage . | . . . . Kills . | . . . . Allies Corrupted . | . . . . Allies Melted . | . . . . Intel | -11 -10 -9 -9 ------- Run | Yrd Mat Mat Min Active Infowar (turns) 448 | . . 433 15 Optics 448 | . . 433 15 Robot Analysis Total . | . . . . Derelict Logs Recovered . | . . . . Drone Launches . | . . . . Drone Recoveries . | . . . . Exploration | -11 -10 -9 -9 ------------- Run | Yrd Mat Mat Min Turns Passed 1673 | 40 1115 503 15 Spaces Moved 1317 | 33 843 440 1 Core 5 | 4 . 1 . Treads . | . . . . Legs . | . . . . Wheels 893 | 29 843 21 . Hover 419 | . . 418 1 Flight . | . . . . Fastest Speed 50 | 50 100 56 56 Average Speed 89 | 93 100 68 56 Slowest Speed 350 | 100 100 350 56 Overloaded Moves . | . . . . Propulsion Burnouts . | . . . . Robots Hopped . | . . . . Potential Cave-ins . | . . . . Cave-ins Triggered . | . . . . Exploration Rate (%) 33 | 4 89 35 4 Regions Visited 3 Branch Regions 1 Pre-discovered Areas . | . . . . Known Exits Taken 2 | . 1 1 . Unknown Exits Taken 1 | 1 . . . Scrap Searched . | . . . . Spaces Dug . | . . . . Terrain Destroyed . | . . . . Melee . | . . . . Projectile . | . . . . AOE . | . . . . Terrain Rammed . | . . . . Walls Destroyed . | . . . . Machines Disabled . | . . . . Actions | -11 -10 -9 -9 --------- Run | Yrd Mat Mat Min Total 1688 | 39 1040 600 9 Wait 223 | . 140 81 2 Move 1314 | 32 842 439 1 Hop . | . . . . Pick Up 19 | 1 10 8 . Fast Attach 14 | 6 3 5 . Attach 3 | . . 3 . Detach 6 | . 1 5 . Swap 6 | . 2 3 1 Drop 15 | . 3 12 . Fire 85 | . 37 43 5 Melee . | . . . . Ram 3 | . 2 1 . Kick . | . . . . Crush . | . . . . Escape Stasis . | . . . . Rewire . | . . . . Trap . | . . . . Miscellaneous . | . . . . Route ------- -11/Scrapyard -10/Materials (discovered 5 exits: *Mat x2 / *Min x2 / *Sub) -9/Materials -9/Mines History --------- Turn | Location | Event 13 | -11/Scrapyard | Discovered new exit (range 16) 41 | -11/Scrapyard | Entered Materials 312 | -10/Materials | Build established: Mutant 407 | -10/Materials | Discovered new exit (range 15) 470 | -10/Materials | Discovered new exit (range 15) 486 | -10/Materials | Identified exit to Materials 564 | -10/Materials | Discovered new exit (range 11) 573 | -10/Materials | Identified exit to Mines 618 | -10/Materials | Repaired Com. Wheel 687 | -10/Materials | Discovered exit to Mines (range 6) 763 | -10/Materials | Discovered exit to Materials (range 16) 911 | -10/Materials | Repaired Com. Wheel 1063 | -10/Materials | Identified exit to Subcaves 1156 | -10/Materials | Entered another Materials area 1156 | -9/Materials | Evolved 2 slots: Utility x2 1521 | -9/Materials | Repaired Beam Cannon 1622 | -9/Materials | Discovered new exit (range 15) 1659 | -9/Materials | Identified exit to Mines 1659 | -9/Materials | Entered Mines 1674 | -9/Mines | Self-destructed Last Messages --------------- Connecting with Repair Station... U-05 Engineer lays Concrete. Connecting with Terminal... K-01 Serf cleans the Nuclear Reactor. K-01 Serf collects debris. K-01 Serf cleans the Nuclear Reactor. K-01 Serf collects debris. K-01 Serf cleans the Nuclear Reactor. K-01 Serf cleans the Terminal. K-01 Serf cleans the Nuclear Reactor. W-16 Scout distress signal alerts nearby ally. K-01 Serf collects debris. EXIT=FOUND G-34 Mercenary suffers critical hit (Burn). G-34 Mercenary destroyed. EXIT=IDENTIFIED: MINES LOCATION=MINES GOAL=ESCAPE Pressure Siphon disabled. S-10 Pest destroyed. Map ----- +----------------------------------------------------+ | ?????????????????????????????????????????????????? | | ?????????????????????????????????????????????????? | | ?????????????????????????????????????????????????? | | ?????????????????????????????????????????????????? | | ?????????????????????????????????????????????????? | | ?????????????????????????????????????????????????? | | ?????????????????????????????????????????????????? | | ?????????????????????????????????????????????????? | | ?????????????????????????????????????????????????? | | ?????????????????????????????????????????????????? | | ?????????????????????????????????????????????????? | | ?????????????????????????????????????????????????? | | ?????????????????????????????????????????????????? | | ?????????????????????????????????????????????????? | | ?????????????????????????????????????????????????? | | ?????????????????????#???????????????????????????? | | ?????????????????????# ??????????????????????????? | | ?????????????????????# ??????????????????????????? | | ????????????????????## ??????????????????????????? | | ????????????????????? ?????????????????????????? | | ????????????????????##%[?????????????????????????? | | ???????????????????## *s####?????????????????????? | | ??????????????????## %= ##????????????????????? | | ????????????????### #????????????????????? | | ????????????????# % #?????????????????????? | | ????????# s %%% @##?????????????????????? | | ???????????###### %%% ##??????????????????????? | | ????????????????## "%%% ????????????????????????? | | ?????????????????## ????????????????????????? | | ??????????????????## ????????????????????????? | | ???????????????????## ?????????????????????????? | | ????????????????????####?????????????????????????? | | ?????????????????????????????????????????????????? | | ?????????????????????????????????????????????????? | | ?????????????????????????????????????????????????? | | | | | | | | | | | | | | | | | | | | | | | | | | | | | | | +----------------------------------------------------+ Best States ------------- Heat Dissipation 42 Energy Generation 14 Energy Capacity 250 Matter Stores 300 Matter Capacity 300 Sight Range 18 Terrain Scan Density 10 Armor Coverage 150 Resistance: KI 20 Resistance: TH 20 Resistance: EX 20 Resistance: EM 20 Resistance: I 20 Resistance: S 20 Resistance: P 20 Evasion (%) 53 Offensive Hacking 10 Item Schematics ----------------- None Robot Schematics ------------------ None Fabricated ------------ Nothing Repaired ---------- Com. Wheel | 23% | -10/Materials Com. Wheel | 63% | -10/Materials Beam Cannon | 64% | -9/Materials Alien Tech Used ----------------- None Achievements -------------- None Challenges ------------ None Game ------ Seed OvertunedMetaShield Manual? 0 Play Time 00:21:37 Cumulative 23.5 hours Start 2025.05.15 @ 22:30:57 End 2025.05.15 @ 22:52:56 Sessions 1 Manual Loads 0 Difficulty Adventurer Special Mode None Game No. 26 Rogue 0 Adventurer 26 Explorer 0 Win Type - Total 0 Types 0/0/0/0/0/0/0/0/0/0 Lore% 14 Gallery% 25 Achievement% 28 Wizard Run 0 Options --------- Layout 1 ASCII 0 Keyboard 1 Movement Numpad Keybinds 0 Fullscreen 2 Font 32/SmallcapsGlow Map View 50x35 Zoom Use 0% Tactical HUD 0 Map Filters NONE Filters NONE Steam 1 RUN: 6b6715f4-fe1e-41cc-becc-7457985c1b00